[Event "Titled Tuesday Blitz June 20 Late 2023"]
[White "Danielyan, Vahe"]
[Black "Kramnik, Vladimir"]
[WhiteFideId "13304828"]
[BlackFideId "4101588"]
[WhiteElo "2423"]
[BlackElo "2703"]
[Result "0-1"]
[Round "5"]
[TimeControl "180+2"]
[Date "2023.06.20"]
[WhiteClock "0:00:00"]
[BlackClock "0:00:27"]
[Board "17"]

1. e4 {[%clk 0:03:00]}  c5 {[%clk 0:02:58]} 2. Nc3 {[%clk 0:02:58]}  e6 {[%clk 0:02:57]} 3. Nf3 {[%clk 0:02:56]}  Nc6 {[%clk 0:02:55]} 4. Bb5 {[%clk 0:02:56]}  Nge7 {[%clk 0:02:47]} 5. O-O {[%clk 0:02:56]}  a6 {[%clk 0:02:47]} 6. Bxc6 {[%clk 0:02:55]}  Nxc6 {[%clk 0:02:47]} 7. d4 {[%clk 0:02:56]}  cxd4 {[%clk 0:02:47]} 8. Nxd4 {[%clk 0:02:57]}  Qc7 {[%clk 0:02:47]} 9. Re1 {[%clk 0:02:55]}  Nxd4 {[%clk 0:02:39]} 10. Qxd4 {[%clk 0:02:54]}  f6 {[%clk 0:02:38]} 11. Be3 {[%clk 0:02:48]}  b5 {[%clk 0:02:35]} 12. Rad1 {[%clk 0:02:35]}  Be7 {[%clk 0:02:29]} 13. a4 {[%clk 0:02:14]}  b4 {[%clk 0:02:26]} 14. Na2 {[%clk 0:02:14]}  Rb8 {[%clk 0:02:18]} 15. Qd3 {[%clk 0:01:49]}  O-O {[%clk 0:02:12]} 16. Nc1 {[%clk 0:01:48]}  Rd8 {[%clk 0:01:54]} 17. Nb3 {[%clk 0:01:47]}  a5 {[%clk 0:01:43]} 18. Nd4 {[%clk 0:01:43]}  Bb7 {[%clk 0:01:32]} 19. Nb5 {[%clk 0:01:43]}  Qc6 {[%clk 0:01:32]} 20. Bf4 {[%clk 0:01:37]}  e5 {[%clk 0:01:30]} 21. Bc1 {[%clk 0:00:48]}  d5 {[%clk 0:01:28]} 22. Qb3 {[%clk 0:00:33]}  Qc4 {[%clk 0:01:16]} 23. Qxc4 {[%clk 0:00:31]}  dxc4 {[%clk 0:01:15]} 24. f3 {[%clk 0:00:31]}  Bc6 {[%clk 0:01:08]} 25. Rxd8+ {[%clk 0:00:29]}  Rxd8 {[%clk 0:01:06]} 26. Be3 {[%clk 0:00:20]}  Rb8 {[%clk 0:01:02]} 27. Rd1 {[%clk 0:00:03]}  Kf8 {[%clk 0:01:00]} 28. b3 {[%clk 0:00:03]}  cxb3 {[%clk 0:00:55]} 29. cxb3 {[%clk 0:00:04]}  Bxb5 {[%clk 0:00:52]} 30. axb5 {[%clk 0:00:05]}  Rxb5 {[%clk 0:00:51]} 31. Rd7 {[%clk 0:00:05]}  a4 {[%clk 0:00:43]} 32. bxa4 {[%clk 0:00:04]}  Ra5 {[%clk 0:00:42]} 33. Rb7 {[%clk 0:00:02]}  Rxa4 {[%clk 0:00:42]} 34. g4 {[%clk 0:00:02]}  Ra2 {[%clk 0:00:41]} 35. h4 {[%clk 0:00:01]}  Ke8 {[%clk 0:00:38]} 36. h5 {[%clk 0:00:02]}  h6 {[%clk 0:00:36]} 37. Bf2 {[%clk 0:00:01]}  Rc2 {[%clk 0:00:34]} 38. Be1 {[%clk 0:00:01]}  Rb2 {[%clk 0:00:28]} 39. Kf1 {[%clk 0:00:00]}  b3 {[%clk 0:00:27]} 0-1


[Site "https://www.chess.com"]

[Event "Titled Tuesday Blitz June 20 Late 2023"]
[White "Grischuk, Alexander"]
[Black "Bolourchifard, Farzad"]
[WhiteFideId "4126025"]
[BlackFideId "12510084"]
[WhiteElo "2721"]
[BlackElo "2317"]
[Result "1-0"]
[Round "5"]
[TimeControl "180+2"]
[Date "2023.06.20"]
[WhiteClock "0:00:20"]
[BlackClock "0:00:01"]
[Board "18"]

1. Nf3 {[%clk 0:02:57]}  d5 {[%clk 0:03:00]} 2. d4 {[%clk 0:02:56]}  Nf6 {[%clk 0:03:00]} 3. Bg5 {[%clk 0:02:57]}  e6 {[%clk 0:02:58]} 4. Nbd2 {[%clk 0:02:56]}  Be7 {[%clk 0:02:59]} 5. e3 {[%clk 0:02:56]}  Nbd7 {[%clk 0:02:57]} 6. Bd3 {[%clk 0:02:55]}  O-O {[%clk 0:02:57]} 7. h4 {[%clk 0:02:44]}  c5 {[%clk 0:02:57]} 8. c3 {[%clk 0:02:44]}  b6 {[%clk 0:02:53]} 9. Ne5 {[%clk 0:02:42]}  Bb7 {[%clk 0:02:39]} 10. Qf3 {[%clk 0:02:39]}  Qc7 {[%clk 0:02:09]} 11. Nxd7 {[%clk 0:01:44]}  Qxd7 {[%clk 0:02:09]} 12. Rh3 {[%clk 0:01:42]}  Kh8 {[%clk 0:01:36]} 13. Kf1 {[%clk 0:01:31]}  Ng8 {[%clk 0:01:34]} 14. Kg1 {[%clk 0:01:21]}  f5 {[%clk 0:01:22]} 15. Qg3 {[%clk 0:01:02]}  Bd6 {[%clk 0:01:19]} 16. Bf4 {[%clk 0:01:01]}  Rad8 {[%clk 0:01:11]} 17. Nf3 {[%clk 0:01:01]}  Nf6 {[%clk 0:01:07]} 18. Ne5 {[%clk 0:01:01]}  Qc7 {[%clk 0:00:55]} 19. h5 {[%clk 0:01:01]}  Bxe5 {[%clk 0:00:47]} 20. Bxe5 {[%clk 0:01:01]}  Qf7 {[%clk 0:00:47]} 21. Qh4 {[%clk 0:00:48]}  Ng4 {[%clk 0:00:36]} 22. Bf4 {[%clk 0:00:44]}  h6 {[%clk 0:00:24]} 23. f3 {[%clk 0:00:44]}  Nf6 {[%clk 0:00:24]} 24. Be5 {[%clk 0:00:44]}  Rd7 {[%clk 0:00:24]} 25. Rf1 {[%clk 0:00:42]}  Nh7 {[%clk 0:00:18]} 26. Rg3 {[%clk 0:00:39]}  Rg8 {[%clk 0:00:18]} 27. Rg6 {[%clk 0:00:38]}  Nf6 {[%clk 0:00:15]} 28. g4 {[%clk 0:00:26]}  Rf8 {[%clk 0:00:09]} 29. gxf5 {[%clk 0:00:23]}  Re7 {[%clk 0:00:07]} 30. Bxf6 {[%clk 0:00:20]}  gxf6 {[%clk 0:00:07]} 31. Rxh6+ {[%clk 0:00:21]}  Kg8 {[%clk 0:00:01]} 32. Kf2 {[%clk 0:00:20]} 1-0


[Site "https://www.chess.com"]

[Event "Titled Tuesday Blitz June 20 Late 2023"]
[White "Sanal, Vahap"]
[Black "Spata, German"]
[WhiteFideId "6300545"]
[BlackFideId "113026"]
[WhiteElo "2606"]
[BlackElo "2260"]
[Result "1-0"]
[Round "5"]
[TimeControl "180+2"]
[Date "2023.06.20"]
[WhiteClock "0:00:22"]
[BlackClock "0:00:00"]
[Board "26"]

1. e4 {[%clk 0:02:58]}  e6 {[%clk 0:02:56]} 2. d4 {[%clk 0:02:57]}  d5 {[%clk 0:02:57]} 3. Nc3 {[%clk 0:02:58]}  dxe4 {[%clk 0:02:57]} 4. Nxe4 {[%clk 0:02:58]}  Nd7 {[%clk 0:02:57]} 5. Nf3 {[%clk 0:02:54]}  Ngf6 {[%clk 0:02:57]} 6. Nxf6+ {[%clk 0:02:54]}  Nxf6 {[%clk 0:02:58]} 7. Ne5 {[%clk 0:02:54]}  Nd7 {[%clk 0:02:57]} 8. Bd3 {[%clk 0:02:51]}  Nxe5 {[%clk 0:02:49]} 9. dxe5 {[%clk 0:02:52]}  Qd5 {[%clk 0:02:45]} 10. Qe2 {[%clk 0:02:51]}  Bd7 {[%clk 0:02:42]} 11. Bg5 {[%clk 0:02:30]}  Bc6 {[%clk 0:02:25]} 12. f3 {[%clk 0:02:14]}  Bc5 {[%clk 0:02:10]} 13. Be4 {[%clk 0:02:06]}  Qd4 {[%clk 0:01:59]} 14. c3 {[%clk 0:02:02]}  Qa4 {[%clk 0:01:52]} 15. b3 {[%clk 0:02:01]}  Qa3 {[%clk 0:01:38]} 16. Bxc6+ {[%clk 0:01:56]}  bxc6 {[%clk 0:01:39]} 17. Bc1 {[%clk 0:01:48]}  Qa5 {[%clk 0:01:30]} 18. b4 {[%clk 0:01:48]}  Bxb4 {[%clk 0:01:24]} 19. cxb4 {[%clk 0:01:49]}  Qxb4+ {[%clk 0:01:24]} 20. Bd2 {[%clk 0:01:48]}  Qb2 {[%clk 0:01:21]} 21. O-O {[%clk 0:01:44]}  Rd8 {[%clk 0:01:18]} 22. Rfd1 {[%clk 0:01:39]}  O-O {[%clk 0:01:14]} 23. Qe1 {[%clk 0:01:38]}  Rd5 {[%clk 0:01:04]} 24. Bf4 {[%clk 0:01:24]}  Rfd8 {[%clk 0:00:50]} 25. Rxd5 {[%clk 0:01:22]}  cxd5 {[%clk 0:00:50]} 26. Rc1 {[%clk 0:01:09]}  h6 {[%clk 0:00:42]} 27. h4 {[%clk 0:01:08]}  d4 {[%clk 0:00:34]} 28. Kh2 {[%clk 0:00:58]}  d3 {[%clk 0:00:32]} 29. Qd2 {[%clk 0:00:57]}  Qb6 {[%clk 0:00:23]} 30. Rc3 {[%clk 0:00:54]}  Qd4 {[%clk 0:00:20]} 31. Rxc7 {[%clk 0:00:54]}  Rd7 {[%clk 0:00:17]} 32. Rxd7 {[%clk 0:00:49]}  Qxd7 {[%clk 0:00:18]} 33. Kg3 {[%clk 0:00:44]}  Qd5 {[%clk 0:00:18]} 34. a4 {[%clk 0:00:40]}  a6 {[%clk 0:00:18]} 35. a5 {[%clk 0:00:39]}  h5 {[%clk 0:00:14]} 36. Qc3 {[%clk 0:00:36]}  Kh7 {[%clk 0:00:12]} 37. Be3 {[%clk 0:00:36]}  Kg6 {[%clk 0:00:10]} 38. Bd4 {[%clk 0:00:26]}  f5 {[%clk 0:00:05]} 39. Qxd3 {[%clk 0:00:22]}  Kf7 {[%clk 0:00:04]} 40. Qc3 {[%clk 0:00:21]}  Kg6 {[%clk 0:00:04]} 41. Kf2 {[%clk 0:00:20]}  Qb5 {[%clk 0:00:04]} 42. Be3 {[%clk 0:00:19]}  Qd5 {[%clk 0:00:03]} 43. Kg3 {[%clk 0:00:16]}  Qb5 {[%clk 0:00:03]} 44. Bf4 {[%clk 0:00:16]}  Qd5 {[%clk 0:00:03]} 45. Kh2 {[%clk 0:00:16]}  Qb5 {[%clk 0:00:03]} 46. Bg3 {[%clk 0:00:16]}  Qd5 {[%clk 0:00:03]} 47. Qe3 {[%clk 0:00:16]}  Qxa5 {[%clk 0:00:03]} 48. Qg5+ {[%clk 0:00:16]}  Kf7 {[%clk 0:00:03]} 49. Qxh5+ {[%clk 0:00:17]}  Kg8 {[%clk 0:00:03]} 50. Qe8+ {[%clk 0:00:17]}  Kh7 {[%clk 0:00:04]} 51. Qh5+ {[%clk 0:00:18]}  Kg8 {[%clk 0:00:04]} 52. Qe8+ {[%clk 0:00:19]}  Kh7 {[%clk 0:00:04]} 53. Qxe6 {[%clk 0:00:20]}  Qb5 {[%clk 0:00:04]} 54. Qxf5+ {[%clk 0:00:20]}  Kg8 {[%clk 0:00:05]} 55. Qe6+ {[%clk 0:00:20]}  Kh7 {[%clk 0:00:05]} 56. Qd6 {[%clk 0:00:21]}  a5 {[%clk 0:00:05]} 57. e6 {[%clk 0:00:21]}  a4 {[%clk 0:00:06]} 58. e7 {[%clk 0:00:22]}  Qe8 {[%clk 0:00:00]} 59. Qd8 {[%clk 0:00:22]} 1-0


[Site "https://www.chess.com"]

[Event "Titled Tuesday Blitz June 20 Late 2023"]
[White "Martic, Ivan"]
[Black "Ibarra Jerez, Jose Carlos"]
[WhiteFideId "929301"]
[BlackFideId "2226332"]
[WhiteElo "2346"]
[BlackElo "2631"]
[Result "0-1"]
[Round "5"]
[TimeControl "180+2"]
[Date "2023.06.20"]
[WhiteClock "0:00:38"]
[BlackClock "0:00:23"]
[Board "27"]

1. d4 {[%clk 0:03:00]}  Nf6 {[%clk 0:02:59]} 2. Nf3 {[%clk 0:03:00]}  g6 {[%clk 0:02:59]} 3. Nbd2 {[%clk 0:02:58]}  Bg7 {[%clk 0:02:58]} 4. e4 {[%clk 0:02:58]}  O-O {[%clk 0:02:49]} 5. Bd3 {[%clk 0:02:52]}  d6 {[%clk 0:02:47]} 6. c3 {[%clk 0:02:51]}  e5 {[%clk 0:02:47]} 7. O-O {[%clk 0:02:48]}  Nbd7 {[%clk 0:02:44]} 8. Re1 {[%clk 0:02:46]}  b6 {[%clk 0:02:43]} 9. Nf1 {[%clk 0:02:43]}  Re8 {[%clk 0:02:43]} 10. Ng3 {[%clk 0:02:43]}  Bb7 {[%clk 0:02:43]} 11. h3 {[%clk 0:02:41]}  exd4 {[%clk 0:02:32]} 12. cxd4 {[%clk 0:02:41]}  c5 {[%clk 0:02:32]} 13. d5 {[%clk 0:02:39]}  a6 {[%clk 0:02:27]} 14. Bg5 {[%clk 0:02:34]}  b5 {[%clk 0:02:22]} 15. Qd2 {[%clk 0:02:33]}  Qb6 {[%clk 0:02:14]} 16. Bc2 {[%clk 0:02:25]}  Rac8 {[%clk 0:02:11]} 17. Bh6 {[%clk 0:02:25]}  Bh8 {[%clk 0:01:49]} 18. Rad1 {[%clk 0:02:18]}  c4 {[%clk 0:01:48]} 19. Nd4 {[%clk 0:02:16]}  Nxd5 {[%clk 0:01:34]} 20. Ndf5 {[%clk 0:02:04]}  c3 {[%clk 0:01:26]} 21. bxc3 {[%clk 0:01:48]}  Bxc3 {[%clk 0:01:06]} 22. Qg5 {[%clk 0:01:38]}  Bxe1 {[%clk 0:01:03]} 23. Rxe1 {[%clk 0:01:34]}  Rxc2 {[%clk 0:01:02]} 24. Rf1 {[%clk 0:01:24]}  f6 {[%clk 0:00:56]} 25. Qh4 {[%clk 0:01:15]}  Nc3 {[%clk 0:00:40]} 26. Nh5 {[%clk 0:01:09]}  Nxe4 {[%clk 0:00:32]} 27. Be3 {[%clk 0:00:54]}  Qc6 {[%clk 0:00:26]} 28. Nh6+ {[%clk 0:00:52]}  Kf8 {[%clk 0:00:26]} 29. Nf4 {[%clk 0:00:48]}  Ng5 {[%clk 0:00:23]} 30. Ng4 {[%clk 0:00:47]}  Qxg2+ {[%clk 0:00:22]} 31. Nxg2 {[%clk 0:00:46]}  Nf3+ {[%clk 0:00:23]} 32. Kh1 {[%clk 0:00:45]}  Nxh4 {[%clk 0:00:23]} 33. Bh6+ {[%clk 0:00:42]}  Kf7 {[%clk 0:00:23]} 34. f3 {[%clk 0:00:38]}  Nxg2 {[%clk 0:00:23]} 0-1


[Site "https://www.chess.com"]

[Event "Titled Tuesday Blitz June 20 Late 2023"]
[White "Ashraf, Artin"]
[Black "Corrales Jimenez, Fidel"]
[WhiteFideId "22514805"]
[BlackFideId "3506690"]
[WhiteElo "2224"]
[BlackElo "2511"]
[Result "1-0"]
[Round "5"]
[TimeControl "180+2"]
[Date "2023.06.20"]
[WhiteClock "0:00:08"]
[BlackClock "0:00:48"]
[Board "29"]

1. Nf3 {[%clk 0:02:59]}  c6 {[%clk 0:03:00]} 2. e4 {[%clk 0:02:53]}  d5 {[%clk 0:03:01]} 3. d3 {[%clk 0:02:53]}  dxe4 {[%clk 0:03:01]} 4. dxe4 {[%clk 0:02:53]}  Qxd1+ {[%clk 0:03:02]} 5. Kxd1 {[%clk 0:02:53]}  f5 {[%clk 0:03:02]} 6. e5 {[%clk 0:02:42]}  Nh6 {[%clk 0:03:00]} 7. Bxh6 {[%clk 0:02:37]}  gxh6 {[%clk 0:02:59]} 8. Bc4 {[%clk 0:02:37]}  Bg7 {[%clk 0:02:59]} 9. Nc3 {[%clk 0:02:32]}  Nd7 {[%clk 0:02:58]} 10. Re1 {[%clk 0:02:30]}  b5 {[%clk 0:02:57]} 11. Be6 {[%clk 0:02:21]}  Nb6 {[%clk 0:02:53]} 12. Bxc8 {[%clk 0:02:21]}  Rxc8 {[%clk 0:02:54]} 13. b3 {[%clk 0:02:18]}  e6 {[%clk 0:02:53]} 14. Kc1 {[%clk 0:02:17]}  Ke7 {[%clk 0:02:53]} 15. Kb2 {[%clk 0:02:17]}  Rhd8 {[%clk 0:02:52]} 16. a4 {[%clk 0:02:18]}  b4 {[%clk 0:02:51]} 17. Nb1 {[%clk 0:02:13]}  Rd5 {[%clk 0:02:48]} 18. Nbd2 {[%clk 0:02:08]}  Rcd8 {[%clk 0:02:48]} 19. a5 {[%clk 0:02:06]}  Nd7 {[%clk 0:02:44]} 20. Nc4 {[%clk 0:02:07]}  Nc5 {[%clk 0:02:45]} 21. a6 {[%clk 0:02:06]}  Ne4 {[%clk 0:02:43]} 22. Re2 {[%clk 0:02:05]}  Nc3 {[%clk 0:02:24]} 23. Rd2 {[%clk 0:01:56]}  Ne4 {[%clk 0:02:03]} 24. Rxd5 {[%clk 0:01:35]}  cxd5 {[%clk 0:02:01]} 25. Na5 {[%clk 0:01:34]}  Rc8 {[%clk 0:02:00]} 26. Ra4 {[%clk 0:01:32]}  Rc5 {[%clk 0:01:50]} 27. Rxb4 {[%clk 0:00:44]}  Rxa5 {[%clk 0:01:49]} 28. Rb7+ {[%clk 0:00:44]}  Kf8 {[%clk 0:01:50]} 29. Rxa7 {[%clk 0:00:45]}  Nd6 {[%clk 0:01:50]} 30. Rxg7 {[%clk 0:00:27]}  Kxg7 {[%clk 0:01:50]} 31. exd6 {[%clk 0:00:26]}  Rxa6 {[%clk 0:01:51]} 32. d7 {[%clk 0:00:25]}  Rd6 {[%clk 0:01:50]} 33. Ne5 {[%clk 0:00:18]}  Kf6 {[%clk 0:01:50]} 34. f4 {[%clk 0:00:18]}  Ke7 {[%clk 0:01:47]} 35. b4 {[%clk 0:00:16]}  h5 {[%clk 0:01:38]} 36. Kb3 {[%clk 0:00:12]}  h4 {[%clk 0:01:38]} 37. b5 {[%clk 0:00:12]}  h3 {[%clk 0:01:29]} 38. g3 {[%clk 0:00:10]}  d4 {[%clk 0:01:27]} 39. Kc4 {[%clk 0:00:08]}  h5 {[%clk 0:01:13]} 40. Kc5 {[%clk 0:00:06]}  Rd5+ {[%clk 0:01:04]} 41. Kc6 {[%clk 0:00:05]}  Kd8 {[%clk 0:01:00]} 42. b6 {[%clk 0:00:03]}  d3 {[%clk 0:01:01]} 43. cxd3 {[%clk 0:00:03]}  Ra5 {[%clk 0:00:45]} 44. Nf7+ {[%clk 0:00:03]}  Ke7 {[%clk 0:00:45]} 45. d8=Q+ {[%clk 0:00:04]}  Kxf7 {[%clk 0:00:46]} 46. b7 {[%clk 0:00:04]}  Ra6+ {[%clk 0:00:44]} 47. Kb5 {[%clk 0:00:05]}  Ra2 {[%clk 0:00:45]} 48. b8=Q {[%clk 0:00:04]}  Rb2+ {[%clk 0:00:45]} 49. Kc4 {[%clk 0:00:05]}  Rxb8 {[%clk 0:00:46]} 50. Qxb8 {[%clk 0:00:05]}  h4 {[%clk 0:00:47]} 51. gxh4 {[%clk 0:00:05]}  Kg6 {[%clk 0:00:47]} 52. Qd8 {[%clk 0:00:05]}  Kh7 {[%clk 0:00:47]} 53. Qg5 {[%clk 0:00:05]}  e5 {[%clk 0:00:48]} 54. h5 {[%clk 0:00:06]}  exf4 {[%clk 0:00:48]} 55. h6 {[%clk 0:00:07]}  f3 {[%clk 0:00:48]} 56. Qg7# {[%clk 0:00:08]} 1-0


[Site "https://www.chess.com"]

[Event "Titled Tuesday Blitz June 20 Late 2023"]
[White "Seemann, Jakub"]
[Black "Iturrizaga Bonelli, Eduardo"]
[WhiteFideId "21874697"]
[BlackFideId "3901211"]
[WhiteElo "2364"]
[BlackElo "2647"]
[Result "0-1"]
[Round "5"]
[TimeControl "180+2"]
[Date "2023.06.20"]
[WhiteClock "0:00:00"]
[BlackClock "0:00:16"]
[Board "30"]

1. d4 {[%clk 0:03:00]}  Nf6 {[%clk 0:02:59]} 2. c4 {[%clk 0:02:58]}  e6 {[%clk 0:03:00]} 3. Nf3 {[%clk 0:02:58]}  c5 {[%clk 0:02:59]} 4. g3 {[%clk 0:02:57]}  cxd4 {[%clk 0:02:58]} 5. Nxd4 {[%clk 0:02:58]}  Bb4+ {[%clk 0:02:57]} 6. Nc3 {[%clk 0:02:58]}  Ne4 {[%clk 0:02:57]} 7. Qc2 {[%clk 0:02:54]}  Qa5 {[%clk 0:02:57]} 8. Bd2 {[%clk 0:02:36]}  Nxd2 {[%clk 0:02:55]} 9. Qxd2 {[%clk 0:02:37]}  Nc6 {[%clk 0:02:55]} 10. Bg2 {[%clk 0:02:26]}  Qc5 {[%clk 0:02:54]} 11. Nxc6 {[%clk 0:02:12]}  bxc6 {[%clk 0:02:49]} 12. a3 {[%clk 0:02:11]}  Qa5 {[%clk 0:02:40]} 13. O-O {[%clk 0:02:10]}  Bxc3 {[%clk 0:02:40]} 14. bxc3 {[%clk 0:02:09]}  O-O {[%clk 0:02:38]} 15. Qd6 {[%clk 0:02:09]}  Qxc3 {[%clk 0:02:28]} 16. Rfc1 {[%clk 0:02:09]}  Qb2 {[%clk 0:02:15]} 17. e3 {[%clk 0:02:08]}  Qb8 {[%clk 0:02:16]} 18. Qe7 {[%clk 0:01:54]}  d5 {[%clk 0:02:08]} 19. cxd5 {[%clk 0:01:49]}  cxd5 {[%clk 0:02:06]} 20. Rc7 {[%clk 0:01:48]}  Ba6 {[%clk 0:02:00]} 21. Rac1 {[%clk 0:01:35]}  Qb2 {[%clk 0:01:53]} 22. h4 {[%clk 0:01:25]}  Bd3 {[%clk 0:01:45]} 23. h5 {[%clk 0:01:22]}  h6 {[%clk 0:01:44]} 24. Bh3 {[%clk 0:01:10]}  Rae8 {[%clk 0:01:18]} 25. Qc5 {[%clk 0:01:09]}  a6 {[%clk 0:01:13]} 26. a4 {[%clk 0:00:46]}  Be2 {[%clk 0:00:59]} 27. Bf1 {[%clk 0:00:24]}  Bxh5 {[%clk 0:00:33]} 28. Bxa6 {[%clk 0:00:23]}  Ra8 {[%clk 0:00:32]} 29. Bb5 {[%clk 0:00:23]}  Bf3 {[%clk 0:00:32]} 30. Qd4 {[%clk 0:00:19]}  Qa3 {[%clk 0:00:29]} 31. Qf4 {[%clk 0:00:18]}  Be4 {[%clk 0:00:28]} 32. Bd7 {[%clk 0:00:18]}  Bf5 {[%clk 0:00:25]} 33. Qe5 {[%clk 0:00:18]}  Qa2 {[%clk 0:00:22]} 34. Bb5 {[%clk 0:00:18]}  Be4 {[%clk 0:00:21]} 35. Qf4 {[%clk 0:00:18]}  Qb2 {[%clk 0:00:20]} 36. Bd7 {[%clk 0:00:10]}  g5 {[%clk 0:00:17]} 37. Qg4 {[%clk 0:00:10]}  Qf6 {[%clk 0:00:17]} 38. Qe2 {[%clk 0:00:07]}  Bf3 {[%clk 0:00:17]} 39. Qd3 {[%clk 0:00:05]}  Qe5 {[%clk 0:00:16]} 40. Bb5 {[%clk 0:00:04]}  g4 {[%clk 0:00:16]} 41. Qd4 {[%clk 0:00:00]}  Qh5 {[%clk 0:00:16]} 0-1


[Site "https://www.chess.com"]

[Event "Titled Tuesday Blitz June 20 Late 2023"]
[White "Baskakov, Egor"]
[Black "Lewtak, Damian"]
[WhiteFideId "24197866"]
[BlackFideId "1141724"]
[WhiteElo "2225"]
[BlackElo "2302"]
[Result "1/2-1/2"]
[Round "5"]
[TimeControl "180+2"]
[Date "2023.06.20"]
[WhiteClock "0:01:29"]
[BlackClock "0:01:16"]
[Board "33"]

1. e4 {[%clk 0:03:00]}  c5 {[%clk 0:02:59]} 2. Nf3 {[%clk 0:03:00]}  d6 {[%clk 0:03:00]} 3. d4 {[%clk 0:03:00]}  cxd4 {[%clk 0:03:00]} 4. Nxd4 {[%clk 0:03:01]}  Nf6 {[%clk 0:03:00]} 5. Nc3 {[%clk 0:03:01]}  a6 {[%clk 0:03:01]} 6. a4 {[%clk 0:03:01]}  g6 {[%clk 0:03:00]} 7. g3 {[%clk 0:03:01]}  Bg7 {[%clk 0:03:00]} 8. Bg2 {[%clk 0:03:02]}  O-O {[%clk 0:03:00]} 9. h3 {[%clk 0:03:02]}  Nc6 {[%clk 0:02:53]} 10. Nde2 {[%clk 0:03:02]}  Rb8 {[%clk 0:02:47]} 11. O-O {[%clk 0:03:01]}  b5 {[%clk 0:02:47]} 12. axb5 {[%clk 0:03:02]}  axb5 {[%clk 0:02:47]} 13. Be3 {[%clk 0:03:03]}  e6 {[%clk 0:02:42]} 14. Nd4 {[%clk 0:03:01]}  Nxd4 {[%clk 0:02:38]} 15. Bxd4 {[%clk 0:03:02]}  b4 {[%clk 0:02:35]} 16. Nb1 {[%clk 0:02:47]}  e5 {[%clk 0:02:31]} 17. Be3 {[%clk 0:02:45]}  Be6 {[%clk 0:02:27]} 18. Nd2 {[%clk 0:02:45]}  d5 {[%clk 0:02:24]} 19. Bc5 {[%clk 0:02:39]}  Re8 {[%clk 0:02:20]} 20. exd5 {[%clk 0:02:39]}  Bxd5 {[%clk 0:02:10]} 21. Nb3 {[%clk 0:02:31]}  Bxg2 {[%clk 0:02:04]} 22. Qxd8 {[%clk 0:02:29]}  Rexd8 {[%clk 0:02:04]} 23. Kxg2 {[%clk 0:02:29]}  Rdc8 {[%clk 0:01:54]} 24. Rfd1 {[%clk 0:02:20]}  Ne4 {[%clk 0:01:49]} 25. Ra5 {[%clk 0:02:14]}  Nxc5 {[%clk 0:01:49]} 26. Nxc5 {[%clk 0:02:14]}  Ra8 {[%clk 0:01:36]} 27. Rb5 {[%clk 0:01:56]}  Bf8 {[%clk 0:01:30]} 28. Nd7 {[%clk 0:01:33]}  Rxc2 {[%clk 0:01:25]} 29. Nxf8 {[%clk 0:01:33]}  Kxf8 {[%clk 0:01:19]} 30. Rxb4 {[%clk 0:01:33]}  Ra2 {[%clk 0:01:16]} 31. Rd5 {[%clk 0:01:30]}  Raxb2 {[%clk 0:01:14]} 32. Rxb2 {[%clk 0:01:31]}  Rxb2 {[%clk 0:01:15]} 33. Rxe5 {[%clk 0:01:29]}  Kg7 {[%clk 0:01:16]} 1/2-1/2


[Site "https://www.chess.com"]

[Event "Titled Tuesday Blitz June 20 Late 2023"]
[White "Maximov, Dmitry"]
[Black "Sharan, Rao"]
[WhiteFideId "14105659"]
[BlackFideId "5073464"]
[WhiteElo "2494"]
[BlackElo "2149"]
[Result "1-0"]
[Round "5"]
[TimeControl "180+2"]
[Date "2023.06.20"]
[WhiteClock "0:00:59"]
[BlackClock "0:00:29"]
[Board "37"]

1. e4 {[%clk 0:03:00]}  d5 {[%clk 0:02:59]} 2. exd5 {[%clk 0:03:00]}  Qxd5 {[%clk 0:02:59]} 3. Nc3 {[%clk 0:03:00]}  Qd8 {[%clk 0:03:00]} 4. d4 {[%clk 0:03:00]}  Nf6 {[%clk 0:03:01]} 5. Bc4 {[%clk 0:02:58]}  c6 {[%clk 0:03:01]} 6. Nf3 {[%clk 0:02:58]}  Bf5 {[%clk 0:03:02]} 7. Ne5 {[%clk 0:02:57]}  e6 {[%clk 0:03:02]} 8. O-O {[%clk 0:02:47]}  Nbd7 {[%clk 0:03:03]} 9. Qe2 {[%clk 0:02:45]}  Nb6 {[%clk 0:03:00]} 10. Bb3 {[%clk 0:02:44]}  Be7 {[%clk 0:02:59]} 11. Re1 {[%clk 0:02:37]}  O-O {[%clk 0:02:59]} 12. Be3 {[%clk 0:02:32]}  Nbd5 {[%clk 0:02:59]} 13. Rad1 {[%clk 0:02:25]}  h6 {[%clk 0:02:58]} 14. Bc1 {[%clk 0:02:23]}  a5 {[%clk 0:02:57]} 15. a4 {[%clk 0:02:18]}  Qc7 {[%clk 0:02:58]} 16. h3 {[%clk 0:02:17]}  Rfd8 {[%clk 0:02:58]} 17. g4 {[%clk 0:02:11]}  Bh7 {[%clk 0:02:38]} 18. Qf3 {[%clk 0:01:55]}  Bf8 {[%clk 0:02:29]} 19. h4 {[%clk 0:01:51]}  Nxc3 {[%clk 0:02:26]} 20. bxc3 {[%clk 0:01:51]}  Nd5 {[%clk 0:02:23]} 21. c4 {[%clk 0:01:43]}  Nb4 {[%clk 0:02:21]} 22. c3 {[%clk 0:01:42]}  Na6 {[%clk 0:02:15]} 23. c5 {[%clk 0:01:40]}  Re8 {[%clk 0:01:58]} 24. g5 {[%clk 0:01:36]}  hxg5 {[%clk 0:01:57]} 25. hxg5 {[%clk 0:01:36]}  Bf5 {[%clk 0:01:57]} 26. Bf4 {[%clk 0:01:30]}  Qe7 {[%clk 0:01:44]} 27. Qg3 {[%clk 0:01:26]}  g6 {[%clk 0:01:37]} 28. Kg2 {[%clk 0:01:22]}  Bg7 {[%clk 0:01:37]} 29. Rh1 {[%clk 0:01:21]}  b6 {[%clk 0:01:24]} 30. cxb6 {[%clk 0:01:20]}  Rab8 {[%clk 0:01:24]} 31. Nxc6 {[%clk 0:01:05]}  Be4+ {[%clk 0:01:23]} 32. f3 {[%clk 0:01:03]}  Bxc6 {[%clk 0:01:22]} 33. Be5 {[%clk 0:01:00]}  Rxb6 {[%clk 0:01:02]} 34. Bxg7 {[%clk 0:00:59]}  Kxg7 {[%clk 0:01:03]} 35. Qe5+ {[%clk 0:00:59]}  f6 {[%clk 0:00:53]} 36. gxf6+ {[%clk 0:00:59]}  Qxf6 {[%clk 0:00:53]} 37. Rh7+ {[%clk 0:00:59]}  Kxh7 {[%clk 0:00:29]} 38. Qxf6 {[%clk 0:00:59]} 1-0


[Site "https://www.chess.com"]